[Event "Polofinale MCR junioru 2023"]
[Site "Czech Republic"]
[Date "2023.11.12"]
[Round "2.36"]
[White "Steinbauer, Sebastian"]
[Black "Kocman, Patrik"]
[Result "1-0"]
[TimeControl "90 min per 40 moves + 15 min + 30 sec / move from move 1"]
[WhiteFideId "399272"]
[BlackFideId "23735732"]
[WhiteElo "1869"]
[BlackElo "1478"]

1. e4 {[%clk 01:30:42]} {[%emt 00:00:17]} e6 {[%clk 01:30:49]} {[%emt
00:00:11]} 2. d4 {[%clk 01:30:56]} {[%emt 00:00:17]} d5 {[%clk 01:31:14]}
{[%emt 00:00:05]} 3. exd5 {[%clk 01:31:23]} {[%emt 00:00:03]} exd5 {[%clk
01:31:41]} {[%emt 00:00:03]} 4. Bd3 {[%clk 01:31:45]} {[%emt 00:00:08]} Bd6
{[%clk 01:31:31]} {[%emt 00:00:40]} 5. Nf3 {[%clk 01:32:08]} {[%emt 00:00:07]}
Nf6 {[%clk 01:30:48]} {[%emt 00:01:12]} 6. O-O {[%clk 01:31:47]} {[%emt
00:00:51]} O-O {[%clk 01:30:56]} {[%emt 00:00:22]} 7. Bg5 {[%clk 01:32:14]}
{[%emt 00:00:03]} Bg4 {[%clk 01:30:10]} {[%emt 00:01:15]} 8. Nbd2 {[%clk
01:32:32]} {[%emt 00:00:13]} Nbd7 {[%clk 01:27:37]} {[%emt 00:03:03]} 9. c3
{[%clk 01:32:57]} {[%emt 00:00:06]} c6 {[%clk 01:27:20]} {[%emt 00:00:47]} 10.
Qc2 {[%clk 01:33:20]} {[%emt 00:00:06]} Qc7 {[%clk 01:24:40]} {[%emt 00:03:09]}
11. Rfe1 {[%clk 01:33:11]} {[%emt 00:00:39]} Rfe8 {[%clk 01:23:57]} {[%emt
00:01:13]} 12. Bh4 {[%clk 01:31:38]} {[%emt 00:02:04]} a6 {[%clk 01:16:09]}
{[%emt 00:08:19]} 13. Bg3 {[%clk 01:31:42]} {[%emt 00:00:26]} Bh5 {[%clk
01:10:28]} {[%emt 00:06:10]} 14. Bxd6 {[%clk 01:31:27]} {[%emt 00:00:46]} Qxd6
{[%clk 01:10:40]} {[%emt 00:00:17]} 15. Qb3 {[%clk 01:31:33]} {[%emt 00:00:24]}
Qc7 {[%clk 01:07:15]} {[%emt 00:03:56]} 16. a4 {[%clk 01:31:18]} {[%emt
00:00:45]} Bg6 {[%clk 01:00:47]} {[%emt 00:06:57]} 17. Bxg6 {[%clk 01:31:04]}
{[%emt 00:00:44]} hxg6 {[%clk 01:01:07]} {[%emt 00:00:11]} 18. Qc2 {[%clk
01:30:47]} {[%emt 00:00:47]} Rxe1+ {[%clk 00:57:55]} {[%emt 00:03:42]} 19. Rxe1
{[%clk 01:31:02]} {[%emt 00:00:15]} Re8 {[%emt 00:00:19]} 20. Rxe8+ {[%emt
00:00:13]} Nxe8 {[%emt 00:00:09]} 21. b4 {[%emt 00:03:13]} b5 {[%emt 00:00:17]}
22. a5 {[%clk 01:31:38]} {[%emt 00:04:26]} Qf4 23. Qd3 {[%emt 00:02:41]} Nd6
{[%emt 00:04:37]} 24. Qe2 {[%emt 00:04:28]} Kf8 {[%emt 00:07:11]} 25. Ne1
{[%emt 00:07:32]} Nc4 {[%emt 00:03:37]} 26. Nb3 {[%clk 01:17:32]} {[%emt
00:06:39]} Nd6 27. Nd3 {[%emt 00:05:11]} Qe4 {[%emt 00:02:23]} 28. Qd1 {[%clk
01:15:42]} {[%emt 00:01:45]} Nb7 29. Qd2 {[%emt 00:03:02]} f6 {[%emt 00:00:33]}
30. f3 {[%clk 01:15:41]} Qe7 {[%clk 00:25:20]} {[%emt 00:01:07]} 31. Kf2 {[%emt
00:01:58]} Qd6 {[%clk 00:22:21]} {[%emt 00:01:49]} 32. g3 {[%emt 00:01:13]} Kf7
{[%clk 00:22:10]} {[%emt 00:00:28]} 33. Nf4 {[%clk 01:15:11]} g5 {[%clk
00:21:38]} {[%emt 00:01:45]} 34. Ng2 {[%clk 01:15:13]} Nd8 {[%clk 00:20:18]}
{[%emt 00:02:18]} 35. Qd3 {[%clk 01:10:39]} {[%emt 00:02:23]} Ne6 36. Ne3
{[%emt 00:05:07]} g6 {[%clk 00:18:30]} {[%emt 00:00:51]} 37. Ng2 {[%clk
01:10:50]} Kg7 {[%clk 00:13:48]} {[%emt 00:05:31]} 38. Nd2 {[%emt 00:01:57]} f5
{[%clk 00:12:13]} {[%emt 00:00:31]} 39. h4 {[%emt 00:04:11]} Nf6 {[%emt
00:04:10]} 40. hxg5 {[%clk 01:08:18]} {[%emt 00:01:06]} Nxg5 {[%clk 00:07:02]}
{[%emt 00:00:47]} 41. Nf4 {[%clk 01:07:42]} Ne6 {[%clk 00:07:02]} {[%emt
00:01:12]} 42. Nxe6+ {[%clk 01:07:57]} Qxe6 {[%clk 00:07:02]} 43. Qe3 Qxe3+ 44.
Kxe3 {[%clk 01:08:20]} {[%emt 00:00:03]} g5 {[%clk 00:06:02]} {[%emt 00:01:56]}
45. Nb3 {[%emt 00:01:52]} Nd7 {[%clk 00:06:12]} {[%emt 00:00:09]} 46. Nc1
{[%emt 00:00:40]} Kf6 {[%clk 00:05:27]} {[%emt 00:00:41]} 47. Nd3 {[%clk
01:07:51]} Ke6 {[%clk 00:05:05]} {[%emt 00:01:04]} 48. Kf2 {[%emt 00:01:42]}
Nb8 {[%clk 00:02:17]} {[%emt 00:03:10]} 49. Ne5 {[%emt 00:02:38]} Kf6 50. Kg2
{[%emt 00:02:48]} Kg7 {[%clk 00:13:53]} {[%emt 00:01:03]} 51. Kh3 {[%clk
01:21:36]} Kh6 {[%clk 00:13:49]} {[%emt 00:01:40]} 52. f4 {[%clk 01:21:52]}
{[%emt 00:00:15]} Kh5 {[%clk 00:07:47]} {[%emt 00:06:32]} 53. fxg5 {[%clk
01:21:47]} {[%emt 00:00:36]} Kxg5 {[%clk 00:08:15]} {[%emt 00:00:02]} 54. Kg2
{[%clk 01:22:05]} {[%emt 00:00:12]} Kf6 {[%emt 00:00:35]} 55. Kf3 {[%clk
01:22:14]} {[%emt 00:00:18]} Kg5 {[%clk 00:07:18]} {[%emt 00:01:24]} 56. Ke3
{[%clk 01:22:13]} {[%emt 00:00:32]} Kf6 {[%clk 00:04:13]} {[%emt 00:03:36]} 57.
Kf4 {[%clk 01:22:36]} {[%emt 00:00:06]} Ke6 {[%clk 00:04:28]} {[%emt 00:00:16]}
58. Kg5 {[%clk 01:23:02]} 1-0

[Event "Polofinale MCR junioru 2023"]
[Site "Czech Republic"]
[Date "2023.11.12"]
[Round "2.37"]
[White "Pelc, Adam"]
[Black "Striz, Tadeas"]
[Result "1-0"]
[TimeControl "90 min per 40 moves + 15 min + 30 sec / move from move 1"]
[WhiteFideId "23723033"]
[BlackFideId "23723530"]
[WhiteElo "1856"]
[BlackElo "1371"]

1. e4 {[%clk 01:30:57]} {[%emt 00:00:02]} e6 {[%clk 01:30:38]} {[%emt
00:00:23]} 2. d3 {[%clk 01:30:59]} {[%emt 00:00:28]} d5 {[%clk 01:30:59]}
{[%emt 00:00:09]} 3. Nd2 {[%clk 01:30:58]} {[%emt 00:00:31]} c5 {[%clk
01:31:12]} {[%emt 00:00:17]} 4. Ngf3 {[%clk 01:30:49]} {[%emt 00:00:39]} Nc6
{[%clk 01:31:27]} {[%emt 00:00:15]} 5. g3 {[%clk 01:31:04]} {[%emt 00:00:14]}
Nf6 {[%clk 01:31:46]} {[%emt 00:00:11]} 6. Bg2 {[%clk 01:30:20]} {[%emt
00:01:14]} g6 {[%clk 01:27:53]} {[%emt 00:04:23]} 7. O-O {[%clk 01:30:08]}
{[%emt 00:00:42]} Bg7 {[%clk 01:28:19]} {[%emt 00:00:05]} 8. Re1 {[%clk
01:29:45]} {[%emt 00:00:52]} O-O {[%clk 01:28:05]} {[%emt 00:00:44]} 9. c3
{[%clk 01:14:30]} {[%emt 00:19:32]} Qc7 10. Nf1 {[%clk 01:07:34]} {[%emt
00:07:07]} b6 11. Bf4 {[%emt 00:20:09]} Qd7 {[%emt 00:07:11]} 12. e5 {[%clk
01:00:39]} {[%emt 00:00:17]} Nh5 {[%clk 01:00:59]} {[%emt 00:05:56]} 13. Bd2
{[%clk 00:59:47]} {[%emt 00:01:22]} f5 {[%clk 01:00:56]} {[%emt 00:00:33]} 14.
b4 {[%clk 00:46:20]} {[%emt 00:13:57]} Ba6 {[%clk 00:49:26]} {[%emt 00:12:00]}
15. Qb1 {[%clk 00:45:05]} {[%emt 00:01:46]} Ne7 {[%clk 00:48:29]} {[%emt
00:01:27]} 16. a4 {[%clk 00:44:29]} {[%emt 00:01:06]} h6 {[%clk 00:46:38]}
{[%emt 00:02:21]} 17. b5 {[%clk 00:40:57]} {[%emt 00:04:02]} Bb7 {[%clk
00:46:05]} {[%emt 00:01:02]} 18. Qd1 {[%clk 00:40:48]} {[%emt 00:00:40]} Kh7
{[%clk 00:45:30]} {[%emt 00:01:05]} 19. h3 {[%clk 00:31:54]} {[%emt 00:09:25]}
Qe8 {[%clk 00:42:40]} {[%emt 00:03:19]} 20. Qc1 {[%clk 00:31:52]} {[%emt
00:00:32]} Qf7 {[%clk 00:40:53]} {[%emt 00:02:17]} 21. a5 {[%clk 00:30:50]}
{[%emt 00:01:32]} Rad8 {[%clk 00:35:10]} {[%emt 00:06:13]} 22. Ra4 {[%clk
00:29:07]} {[%emt 00:02:13]} Nc8 {[%clk 00:34:03]} {[%emt 00:01:36]} 23. g4
{[%clk 00:29:08]} {[%emt 00:00:29]} 1-0

[Event "Polofinale MCR junioru 2023"]
[Site "Czech Republic"]
[Date "2023.11.12"]
[Round "2.38"]
[White "Sklar, Petr"]
[Black "Roubal, Matyas"]
[Result "0-1"]
[TimeControl "90 min per 40 moves + 15 min + 30 sec / move from move 1"]
[WhiteFideId "23731141"]
[BlackFideId "23727152"]
[WhiteElo "1160"]
[BlackElo "1837"]

1. e4 {[%clk 01:30:56]} {[%emt 00:00:03]} c5 {[%clk 01:30:52]} {[%emt
00:00:08]} 2. Nf3 {[%clk 01:31:20]} {[%emt 00:00:05]} Nc6 {[%clk 01:30:33]}
{[%emt 00:00:49]} 3. d4 {[%clk 01:31:40]} {[%emt 00:00:10]} cxd4 {[%clk
01:30:59]} {[%emt 00:00:04]} 4. Nxd4 {[%clk 01:32:02]} {[%emt 00:00:08]} g6
{[%clk 01:31:26]} {[%emt 00:00:04]} 5. Nc3 {[%clk 01:29:47]} {[%emt 00:02:44]}
Bg7 {[%clk 01:30:23]} {[%emt 00:01:33]} 6. Nxc6 {[%clk 01:25:40]} {[%emt
00:04:37]} bxc6 {[%clk 01:28:49]} {[%emt 00:02:03]} 7. Bc4 {[%clk 01:25:05]}
{[%emt 00:01:05]} d6 {[%clk 01:27:53]} {[%emt 00:01:26]} 8. O-O {[%clk
01:20:03]} {[%emt 00:05:32]} e6 {[%clk 01:25:49]} {[%emt 00:02:34]} 9. Bf4
{[%clk 01:11:55]} {[%emt 00:08:35]} d5 {[%clk 01:23:59]} {[%emt 00:02:23]} 10.
exd5 {[%clk 01:06:06]} {[%emt 00:06:19]} cxd5 {[%clk 01:23:51]} {[%emt
00:00:38]} 11. Nb5 {[%clk 00:41:18]} {[%emt 00:25:18]} dxc4 {[%clk 01:20:05]}
{[%emt 00:04:16]} 12. Nc7+ {[%clk 00:41:20]} {[%emt 00:00:28]} Ke7 {[%clk
01:20:29]} {[%emt 00:00:05]} 13. Qxd8+ {[%clk 00:36:43]} {[%emt 00:05:08]} Kxd8
{[%clk 01:20:43]} {[%emt 00:00:17]} 14. Rad1+ {[%clk 00:36:58]} {[%emt
00:00:14]} Bd7 {[%clk 01:19:52]} {[%emt 00:01:22]} 15. Nxa8 {[%clk 00:37:15]}
{[%emt 00:00:14]} Kc8 {[%clk 01:17:08]} {[%emt 00:03:13]} 16. Rd6 {[%clk
00:30:43]} {[%emt 00:07:01]} Ne7 {[%clk 01:15:13]} {[%emt 00:02:25]} 17. Nb6+
{[%clk 00:28:26]} {[%emt 00:02:47]} axb6 {[%clk 01:15:19]} {[%emt 00:00:25]} 18.
Rxb6 {[%clk 00:28:46]} {[%emt 00:00:09]} e5 {[%clk 01:14:49]} {[%emt 00:01:01]}
19. Bg3 {[%clk 00:26:17]} {[%emt 00:02:59]} Nf5 {[%clk 01:14:12]} {[%emt
00:01:07]} 20. c3 {[%clk 00:25:21]} {[%emt 00:01:26]} Nxg3 {[%clk 01:13:51]}
{[%emt 00:00:51]} 21. hxg3 {[%clk 00:25:38]} {[%emt 00:00:13]} Kc7 {[%clk
01:13:18]} {[%emt 00:01:04]} 22. Rb4 {[%clk 00:25:25]} {[%emt 00:00:42]} Be6
{[%clk 01:13:43]} {[%emt 00:00:05]} 23. Rd1 {[%clk 00:24:10]} {[%emt 00:01:43]}
Ra8 {[%clk 01:12:51]} {[%emt 00:01:24]} 24. a4 {[%clk 00:22:33]} {[%emt
00:02:06]} Kc6 {[%clk 01:10:56]} {[%emt 00:02:25]} 25. Ra1 {[%clk 00:17:58]}
{[%emt 00:05:05]} Bf8 {[%clk 01:10:43]} {[%emt 00:00:44]} 26. Rb5 {[%clk
00:17:51]} {[%emt 00:00:37]} Bc5 {[%clk 01:10:40]} {[%emt 00:00:32]} 27. b4
{[%clk 00:16:45]} {[%emt 00:01:37]} cxb3 {[%clk 01:10:33]} {[%emt 00:00:37]} 28.
Kf1 {[%clk 00:14:38]} {[%emt 00:02:36]} Bc4+ {[%clk 01:10:59]} {[%emt
00:00:04]} 0-1

[Event "Polofinale MCR junioru 2023"]
[Site "Czech Republic"]
[Date "2023.11.12"]
[Round "2.39"]
[White "Bednar, Milos"]
[Black "Brychta, David"]
[Result "1-0"]
[TimeControl "90 min per 40 moves + 15 min + 30 sec / move from move 1"]
[WhiteFideId "23709812"]
[BlackFideId "23742798"]
[WhiteElo "1833"]
[BlackElo "1230"]

1. e4 {[%clk 01:30:57]} {[%emt 00:00:01]} c5 {[%clk 01:30:58]} {[%emt
00:00:03]} 2. Nf3 {[%clk 01:31:22]} {[%emt 00:00:05]} e6 {[%clk 01:31:24]}
{[%emt 00:00:04]} 3. d4 {[%clk 01:31:49]} {[%emt 00:00:03]} cxd4 {[%clk
01:31:49]} {[%emt 00:00:05]} 4. Nxd4 {[%clk 01:32:16]} {[%emt 00:00:03]} a6
{[%clk 01:32:16]} {[%emt 00:00:03]} 5. c4 {[%clk 01:32:42]} {[%emt 00:00:03]}
Qc7 {[%clk 01:32:25]} {[%emt 00:00:21]} 6. Be3 {[%clk 01:33:03]} {[%emt
00:00:09]} Nf6 {[%clk 01:32:45]} {[%emt 00:00:10]} 7. Bd3 {[%clk 01:33:22]}
{[%emt 00:00:12]} Be7 {[%clk 01:32:15]} {[%emt 00:01:00]} 8. Nc3 {[%clk
01:33:14]} {[%emt 00:00:38]} Nc6 {[%clk 01:32:29]} {[%emt 00:00:16]} 9. O-O
{[%clk 01:32:33]} {[%emt 00:01:10]} O-O {[%clk 01:32:33]} {[%emt 00:00:27]} 10.
Rc1 {[%clk 01:32:41]} {[%emt 00:00:22]} Rd8 {[%clk 01:26:50]} {[%emt 00:06:13]}
11. Qe2 {[%clk 01:25:31]} {[%emt 00:07:41]} b6 {[%clk 01:23:26]} {[%emt
00:03:54]} 12. a3 {[%clk 01:24:26]} {[%emt 00:01:34]} Bb7 {[%clk 01:23:20]}
{[%emt 00:00:36]} 13. Rfd1 {[%clk 01:24:01]} {[%emt 00:00:55]} Bc5 {[%clk
01:17:05]} {[%emt 00:06:45]} 14. Nxc6 {[%clk 01:18:33]} {[%emt 00:05:59]} Qxc6
{[%clk 01:16:34]} {[%emt 00:01:01]} 15. Bxc5 {[%clk 01:18:58]} {[%emt
00:00:05]} Qxc5 {[%clk 01:16:31]} {[%emt 00:00:32]} 16. e5 {[%clk 01:18:40]}
{[%emt 00:00:48]} Ne8 {[%clk 01:15:52]} {[%emt 00:01:09]} 17. b4 {[%clk
01:15:32]} {[%emt 00:03:38]} Qc7 {[%clk 01:15:30]} {[%emt 00:00:51]} 18. c5
{[%clk 01:15:07]} {[%emt 00:00:56]} bxc5 {[%clk 01:13:07]} {[%emt 00:02:52]} 19.
Nb1 {[%clk 01:11:45]} {[%emt 00:03:53]} d6 {[%clk 01:10:58]} {[%emt 00:02:39]}
20. exd6 {[%clk 01:11:12]} {[%emt 00:01:03]} Rxd6 {[%clk 01:11:12]} {[%emt
00:00:15]} 21. bxc5 {[%clk 01:10:20]} {[%emt 00:01:22]} Rd5 {[%clk 01:11:13]}
{[%emt 00:00:29]} 22. Be4 {[%clk 01:07:32]} {[%emt 00:03:18]} Re5 {[%clk
01:10:36]} {[%emt 00:01:08]} 23. c6 {[%clk 01:07:29]} {[%emt 00:00:33]} Bc8
{[%clk 01:05:23]} {[%emt 00:05:42]} 24. Qc2 {[%clk 01:03:50]} {[%emt 00:04:10]}
Rh5 {[%clk 01:03:11]} {[%emt 00:02:42]} 25. g3 {[%clk 01:03:28]} {[%emt
00:00:52]} Nf6 {[%clk 01:03:09]} {[%emt 00:00:31]} 26. Qd3 {[%clk 01:02:48]}
{[%emt 00:01:10]} Kf8 {[%clk 00:57:40]} {[%emt 00:06:00]} 27. Bf3 {[%clk
01:01:36]} {[%emt 00:01:41]} Rf5 {[%clk 00:54:04]} {[%emt 00:04:05]} 28. Nc3
{[%clk 01:01:37]} {[%emt 00:00:30]} Rb8 {[%clk 00:39:24]} {[%emt 00:15:10]} 29.
Qd8+ {[%clk 01:00:50]} {[%emt 00:01:17]} Qxd8 {[%clk 00:39:47]} {[%emt
00:00:07]} 30. Rxd8+ {[%clk 01:01:17]} {[%emt 00:00:03]} Ke7 {[%clk 00:40:12]}
{[%emt 00:00:04]} 31. c7 {[%clk 01:01:44]} {[%emt 00:00:03]} Rb6 {[%clk
00:35:00]} {[%emt 00:05:42]} 1-0

[Event "Polofinale MCR junioru 2023"]
[Site "Czech Republic"]
[Date "2023.11.13"]
[Round "3.1"]
[White "Prazak, Daniel"]
[Black "Jun, Rudolf"]
[Result "0-1"]
[TimeControl "90 min per 40 moves + 15 min + 30 sec / move from move 1"]
[WhiteFideId "23709456"]
[BlackFideId "376612"]
[WhiteElo "2103"]
[BlackElo "2260"]

1. e4 {[%clk 01:30:57]} {[%emt 00:00:02]} c5 {[%clk 01:30:28]} {[%emt
00:00:32]} 2. Nf3 {[%clk 01:31:08]} {[%emt 00:00:19]} Nc6 {[%clk 01:30:34]}
{[%emt 00:00:25]} 3. d4 {[%clk 01:29:59]} {[%emt 00:01:38]} cxd4 {[%clk
01:31:02]} {[%emt 00:00:03]} 4. Nxd4 {[%clk 01:30:12]} {[%emt 00:00:16]} Nf6
{[%clk 01:29:30]} {[%emt 00:02:02]} 5. Nc3 {[%clk 01:30:29]} {[%emt 00:00:13]}
d6 {[%clk 01:29:07]} {[%emt 00:00:53]} 6. Bg5 {[%clk 01:28:10]} {[%emt
00:02:49]} e6 {[%clk 01:27:23]} {[%emt 00:02:14]} 7. Qd2 {[%clk 01:28:28]}
{[%emt 00:00:12]} a6 {[%clk 01:25:29]} {[%emt 00:02:25]} 8. O-O-O {[%clk
01:28:11]} {[%emt 00:00:47]} h6 {[%clk 01:20:32]} {[%emt 00:05:27]} 9. Bh4
{[%clk 01:20:26]} {[%emt 00:08:15]} Nxe4 {[%clk 01:10:15]} {[%emt 00:10:47]} 10.
Qf4 {[%clk 01:14:25]} {[%emt 00:06:31]} Ng5 {[%clk 01:09:32]} {[%emt 00:01:13]}
11. Nxc6 {[%clk 01:04:11]} {[%emt 00:10:43]} bxc6 {[%clk 01:09:50]} {[%emt
00:00:12]} 12. Qe3 {[%clk 00:53:38]} {[%emt 00:11:02]} Be7 {[%clk 01:07:45]}
{[%emt 00:02:36]} 13. f4 {[%clk 00:50:19]} {[%emt 00:03:50]} Nh7 {[%clk
01:08:09]} {[%emt 00:00:05]} 14. Bxe7 {[%clk 00:49:27]} {[%emt 00:01:22]} Qxe7
{[%clk 01:05:19]} {[%emt 00:03:20]} 15. Qd4 {[%clk 00:49:22]} {[%emt 00:00:36]}
d5 {[%clk 01:05:20]} {[%emt 00:00:29]} 16. Qxg7 {[%clk 00:49:26]} {[%emt
00:00:26]} Qf6 {[%clk 01:05:48]} {[%emt 00:00:01]} 17. Qg3 {[%clk 00:48:46]}
{[%emt 00:01:10]} Rb8 {[%clk 01:00:06]} {[%emt 00:06:12]} 18. Bd3 {[%clk
00:45:51]} {[%emt 00:03:25]} Nf8 {[%clk 01:00:34]} {[%emt 00:00:02]} 19. Rhe1
{[%clk 00:37:05]} {[%emt 00:09:15]} Rb4 {[%clk 00:59:04]} {[%emt 00:02:01]} 20.
Rf1 {[%clk 00:35:10]} {[%emt 00:02:25]} Nd7 {[%clk 00:57:14]} {[%emt 00:02:21]}
21. a3 {[%clk 00:33:25]} {[%emt 00:02:15]} Rb8 {[%clk 00:57:42]} {[%emt
00:00:02]} 22. Qf2 {[%clk 00:30:27]} {[%emt 00:03:28]} h5 {[%clk 00:54:38]}
{[%emt 00:03:33]} 23. Rde1 {[%clk 00:28:31]} {[%emt 00:02:26]} Bb7 {[%clk
00:49:02]} {[%emt 00:06:06]} 24. Qa7 {[%clk 00:25:44]} {[%emt 00:03:17]} Ke7
{[%clk 00:47:41]} {[%emt 00:01:51]} 25. Na4 {[%clk 00:21:34]} {[%emt 00:04:40]}
Kd6 {[%clk 00:43:17]} {[%emt 00:04:54]} 26. c3 {[%clk 00:19:07]} {[%emt
00:02:58]} c5 {[%clk 00:41:15]} {[%emt 00:02:32]} 27. Nb6 {[%clk 00:15:47]}
{[%emt 00:03:50]} Nxb6 {[%clk 00:37:23]} {[%emt 00:04:22]} 28. Qxb6+ {[%clk
00:16:09]} {[%emt 00:00:08]} Bc6 {[%clk 00:37:45]} {[%emt 00:00:07]} 29. Qa5
{[%clk 00:16:01]} {[%emt 00:00:38]} Rb3 {[%clk 00:32:28]} {[%emt 00:05:47]} 30.
Rf2 {[%clk 00:13:29]} {[%emt 00:03:03]} Rhb8 {[%clk 00:31:55]} {[%emt
00:01:02]} 31. Re5 {[%clk 00:12:10]} {[%emt 00:01:48]} h4 {[%clk 00:20:18]}
{[%emt 00:12:08]} 32. Bf1 {[%clk 00:09:28]} {[%emt 00:03:12]} Rxb2 {[%clk
00:14:39]} {[%emt 00:06:10]} 33. Rxb2 {[%clk 00:08:44]} {[%emt 00:01:13]} Qxf4+
{[%clk 00:15:07]} {[%emt 00:00:02]} 34. Kc2 {[%clk 00:08:54]} {[%emt 00:00:20]}
Ba4+ {[%clk 00:14:31]} {[%emt 00:01:06]} 0-1